lending/lending_fUSD_20250719
["ID","MTS","AMOUNT","RATE_DAILY","PERIOD"]
[373241960,1752921055331,-781.22,0.00019835,2]
[373241961,1752921055345,-480.0,0.00019835,2]
[373241962,1752921055354,-541.43,0.00019835,2]
[373241963,1752921055363,-2398.3,0.00019835,2]
[373241964,1752921055373,-590.52,0.00019835,2]
[373241965,1752921055383,-606.77,0.00019835,2]
[373241966,1752921055392,-480.0,0.00019835,2]
[373241967,1752921055401,-480.0,0.00019835,2]
[373241968,1752921055412,-628.36,0.00019835,2]
[373241969,1752921055421,-897.96,0.00019835,2]
[373241970,1752921055431,-569.7,0.00019835,2]
[373241971,1752921055440,-489.7,0.00019835,2]
[373241972,1752921055449,-2658.02499007,0.00019905,2]
[373241973,1752921055459,-480.0,0.00019944,2]
[373241974,1752921055468,-480.0,0.00019944,2]
[373241975,1752921055478,-480.0,0.00019944,2]
[373241976,1752921055487,-480.0,0.00019944,2]
[373241977,1752921055496,-480.0,0.00019944,2]
[373241978,1752921055506,-1111.29,0.00019944,2]
[373241979,1752921055515,-480.0,0.00019944,2]
[373241980,1752921055525,-480.0,0.00019944,2]
[373241981,1752921055534,-214.9,0.00019944,2]
[373241982,1752921055543,-330.3,0.00019944,2]
[373241983,1752921055552,-480.0,0.00019944,2]
[373241984,1752921055562,-620.76981011,0.00019944,2]
[373241985,1752921055571,-480.0,0.00019944,2]
[373241986,1752921055581,-480.0,0.00019944,2]
[373241987,1752921055591,-1310.82,0.00019944,2]
[373241988,1752921055600,-480.0,0.00019944,2]
[373241989,1752921055611,-480.0,0.00019944,2]
[373241990,1752921055622,-239.61,0.00019944,2]
[373241991,1752921055632,-480.0,0.00019944,2]
[373241992,1752921055642,-480.0,0.00019944,2]
[373241993,1752921055652,-480.0,0.00019944,2]
[373241994,1752921055661,-1240.8,0.00019944,2]
[373241995,1752921055670,-480.0,0.00019944,2]
[373241996,1752921055680,-480.0,0.00019944,2]
[373241997,1752921055689,-480.0,0.00019944,2]
[373241998,1752921055699,-480.0,0.00019944,2]
[373241999,1752921055708,-480.0,0.00019944,2]
[373242000,1752921055717,-1606.01,0.00019944,2]
[373242001,1752921055728,-480.0,0.00019944,2]
[373242002,1752921055737,-485.43,0.00019944,2]
[373242003,1752921055746,-2440.33,0.00019944,2]
[373242004,1752921055756,-480.0,0.00019944,2]
[373242005,1752921055766,-1516.01,0.00019944,2]
[373242006,1752921055776,-700.94,0.00019944,2]
[373242007,1752921055786,-820.89,0.00019944,2]
[373242008,1752921055794,-480.0,0.00019944,2]
[373242009,1752921055803,-1156.47,0.00019944,2]
[373242010,1752921055812,-560.17,0.00019944,2]
[373242011,1752921055820,-480.0,0.00019944,2]
[373242012,1752921055829,-521.71,0.00019944,2]
[373242013,1752921055838,-600.44,0.00019944,2]
[373242014,1752921055846,-2912.24,0.00019944,2]
[373242015,1752921055855,-480.0,0.00019944,2]
[373242016,1752921055863,-480.0,0.00019944,2]
[373242017,1752921055872,-480.0,0.00019944,2]
[373242018,1752921055881,-480.0,0.00019944,2]
[373242019,1752921055890,-480.0,0.00019944,2]
[373242020,1752921055899,-480.0,0.00019944,2]
[373242021,1752921055908,-480.0,0.00019944,2]
[373242022,1752921055917,-1529.27,0.00019944,2]
[373242023,1752921055926,-224.43,0.00019944,2]
[373242024,1752921055935,-480.0,0.00019944,2]
[373242025,1752921055944,-480.0,0.00019944,2]
[373242026,1752921055953,-1247.57,0.00019944,2]
[373242027,1752921055962,-817.64,0.00019944,2]
[373242028,1752921055971,-1720.49,0.00019944,2]
[373242029,1752921055980,-1590.09,0.00019944,2]
[373242030,1752921055989,-526.61,0.00019944,2]
[373242031,1752921056000,-480.0,0.00019944,2]
[373242032,1752921056009,-480.0,0.00019944,2]
[373242033,1752921056018,-480.0,0.00019944,2]
[373242034,1752921056027,-480.0,0.00019944,2]
[373242035,1752921056037,-818.52,0.00019944,2]
[373242036,1752921056046,-1518.15,0.00019944,2]
[373242037,1752921056056,-277.22,0.00019944,2]
[373242038,1752921056066,-480.0,0.00019944,2]
[373242039,1752921056075,-641.49,0.00019944,2]
[373242040,1752921056084,-580.76,0.00019944,2]
[373242041,1752921056094,-480.0,0.00019944,2]
[373242042,1752921056103,-9.67565469,0.00019944,2]
[373242043,1752921056574,-256.128832,0.00019178,2]
[373242044,1752921056584,-480.0,0.00019178,2]
[373242045,1752921056593,-446.971168,0.00019178,2]
[373242046,1752921056605,-33.028832,0.00019178,2]
[373242047,1752921056614,-242.8613502,0.00019178,2]
[373242048,1752921056657,-237.1386498,0.00019178,2]
[373242049,1752921056666,-506.29,0.00019287,2]
[373242050,1752921056676,-480.0,0.00019287,2]
[373242051,1752921056686,-480.0,0.00019287,2]
[373242052,1752921056695,-480.0,0.00019396,2]
[373242053,1752921056705,-479.49943548,0.00019396,2]
[373242054,1752921056714,-480.0,0.00019397,2]
[373242055,1752921056723,-480.0,0.00019506,2]
[373242056,1752921056733,-480.0,0.00019506,2]
[373242057,1752921056743,-480.0,0.00019615,2]
[373242058,1752921056752,-480.0,0.00019725,2]
[373242059,1752921056761,-508.45,0.00019834,2]
[373242060,1752921056771,-470.32434531,0.00019944,2]
[373242061,1752921056780,-1250.5,0.00019944,2]
[373242062,1752921056789,-480.0,0.00019944,2]
[373242063,1752921056799,-480.0,0.00019944,2]
[373242064,1752921056809,-1302.89,0.00019944,2]
[373242065,1752921056818,-484.97,0.00019944,2]
[373242066,1752921056828,-480.0,0.00019944,2]
[373242067,1752921056838,-480.0,0.00019944,2]
[373242068,1752921056847,-1578.8,0.00019944,2]
[373242069,1752921056857,-480.0,0.00019944,2]
[373242070,1752921056866,-3274.4,0.00019944,2]
[373242071,1752921056876,-480.0,0.00019944,2]
[373242072,1752921056885,-480.0,0.00019944,2]
[373242073,1752921056895,-1006.69,0.00019944,2]
[373242074,1752921056905,-480.0,0.00019944,2]
[373242075,1752921056916,-578.45,0.00019944,2]
[373242076,1752921056925,-852.18,0.00019944,2]
[373242077,1752921056934,-8787.28,0.00019944,2]
[373242078,1752921056943,-709.63756941,0.00019944,2]
[373242079,1752921057033,-225.49534065,0.00019944,2]
[373242080,1752921057344,-392.66217282,0.00019178,2]
[373242081,1752921057512,-87.33782718,0.00019178,2]
[373242082,1752921057521,-463.58424216,0.00019178,2]
[373242083,1752921057531,-480.0,0.00019178,2]
[373242084,1752921057540,-465.20651768,0.00019178,2]
[373242085,1752921057550,-480.0,0.00019178,2]
[373242086,1752921057560,-230.62136649,0.00019178,2]
[373242087,1752921057570,-460.0,0.00019178,2]
[373242088,1752921057579,-521.58407507,0.00019178,2]
[373242089,1752921057588,-586.3,0.00019178,2]
[373242090,1752921057598,-480.0,0.00019286,2]
[373242091,1752921057608,-1158.1,0.00019286,2]
[373242092,1752921057618,-440.0,0.00019287,2]
[373242093,1752921057627,-480.0,0.00019287,2]
[373242094,1752921057636,-487.08683265,0.00019396,2]
[373242095,1752921057644,-480.0,0.00019396,2]
[373242096,1752921057654,-1158.1,0.00019396,2]
[373242097,1752921057662,-485.84647133,0.00019396,2]
[373242098,1752921057671,-480.0,0.00019397,2]
[373242099,1752921057680,-480.0,0.00019397,2]
[373242100,1752921057689,-480.0,0.00019506,2]
[373242101,1752921057697,-153.28,0.00019506,2]
[373242102,1752921057706,-1158.1,0.00019506,2]
[373242103,1752921057715,-480.0,0.00019506,2]
[373242104,1752921057724,-1158.1,0.00019615,2]
[373242105,1752921057733,-480.0,0.00019616,2]
[373242106,1752921057741,-559.57,0.00019616,2]
[373242107,1752921057750,-480.0,0.00019616,2]
[373242108,1752921057758,-1158.1,0.00019725,2]
[373242109,1752921057767,-163.13,0.00019726,2]
[373242110,1752921057775,-290.95208,0.00019726,2]
[373242111,1752921057784,-457.45,0.00019834,2]
[373242112,1752921057793,-1158.1,0.00019834,2]
[373242113,1752921057802,-879.49708994,0.00019944,2]
[373242114,1752921057814,-480.0,0.00019944,2]
[373242115,1752921057823,-480.0,0.00019944,2]
[373242116,1752921057833,-715.17,0.00019944,2]
[373242117,1752921057842,-3244.89,0.00019944,2]
[373242118,1752921057851,-480.0,0.00019944,2]
[373242119,1752921057861,-1462.31,0.00019944,2]
[373242120,1752921057870,-954.46,0.00019944,2]
[373242121,1752921057880,-1688.44,0.00019944,2]
[373242122,1752921057890,-480.0,0.00019944,2]
[373242123,1752921057900,-1554.2,0.00019944,2]
[373242124,1752921057909,-508.45,0.00019944,2]
[373242125,1752921057920,-1158.1,0.00019944,2]
[373242126,1752921057929,-480.0,0.00019945,2]
[373242127,1752921057939,-480.0,0.00019945,2]
[373242128,1752921057948,-599.58,0.00019945,2]
[373242129,1752921057959,-1012.9,0.00019945,2]
[373242130,1752921057968,-480.0,0.00019945,2]
[373242131,1752921057978,-894.94,0.00019945,2]
[373242132,1752921057987,-480.0,0.00019945,2]
[373242133,1752921057997,-1744.64,0.00019945,2]
[373242134,1752921058007,-480.0,0.00019945,2]
[373242135,1752921058017,-986.46,0.00019945,2]
[373242136,1752921058027,-668.47,0.00019945,2]
[373242137,1752921058036,-484.86,0.00019945,2]
[373242138,1752921058046,-480.0,0.00019945,2]
[373242139,1752921058056,-781.22,0.00019945,2]
[373242140,1752921058065,-480.0,0.00019945,2]
[373242141,1752921058075,-541.43,0.00019945,2]
[373242142,1752921058085,-2398.3,0.00019945,2]
[373242143,1752921058095,-590.52,0.00019945,2]
[373242144,1752921058104,-606.77,0.00019945,2]
[373242145,1752921058113,-480.0,0.00019945,2]
[373242146,1752921058122,-628.36,0.00019945,2]
[373242147,1752921058132,-897.96,0.00019945,2]
[373242148,1752921058141,-489.7,0.00019945,2]
[373242149,1752921058151,-2054.3787876,0.00019985,2]
[373242150,1752921058160,-4949.16236673,0.0002,4]
[373242151,1752921058170,-15169.97376731,0.0002,20]
[373242152,1752921058189,-10008.97902764,0.0002,20]
[373242153,1752921058198,-4000.0,0.0002,4]
[373242154,1752921058208,-151.62,0.0002,2]
[373242155,1752921058217,-151.62,0.0002,2]
[373242156,1752921058318,-151.62,0.0002,2]
[373242157,1752921058335,-151.62,0.0002,2]
[373242158,1752921058345,-151.62,0.0002,2]
[373242159,1752921058355,-151.62,0.0002,2]
[373242160,1752921058364,-151.62,0.0002,2]
[373242161,1752921058374,-151.62,0.0002,2]
[373242162,1752921058383,-151.62,0.0002,2]
[373242163,1752921058393,-151.62,0.0002,2]
[373242164,1752921058402,-151.62,0.0002,2]
[373242165,1752921058411,-151.62,0.0002,2]
[373242166,1752921058420,-151.62,0.0002,2]
[373242167,1752921058430,-151.62,0.0002,2]
[373242168,1752921058439,-151.62,0.0002,2]
[373242169,1752921058448,-151.62,0.0002,2]
[373242170,1752921058457,-151.62,0.0002,2]
[373242171,1752921058467,-151.62,0.0002,2]
[373242172,1752921058476,-151.62,0.0002,2]
[373242173,1752921058487,-151.62,0.0002,2]
[373242174,1752921058496,-151.62,0.0002,2]
[373242175,1752921058506,-151.62,0.0002,2]
[373242176,1752921058516,-151.62,0.0002,2]
[373242177,1752921058526,-151.62,0.0002,2]
[373242178,1752921058535,-151.62,0.0002,2]
[373242179,1752921058544,-151.62,0.0002,2]
[373242180,1752921058553,-151.62,0.0002,2]
[373242181,1752921058563,-151.62,0.0002,2]
[373242182,1752921058572,-151.62,0.0002,2]
[373242183,1752921058581,-151.62,0.0002,2]
[373242184,1752921058591,-151.62,0.0002,2]
[373242185,1752921058600,-151.62,0.0002,2]
[373242186,1752921058609,-151.62,0.0002,2]
[373242187,1752921058618,-151.62,0.0002,2]
[373242188,1752921058628,-151.62,0.0002,2]
[373242189,1752921058637,-151.62,0.0002,2]
[373242190,1752921058647,-151.62,0.0002,2]
[373242191,1752921058656,-151.62,0.0002,2]
[373242192,1752921058666,-151.62,0.0002,2]
[373242193,1752921058675,-151.62,0.0002,2]
[373242194,1752921058685,-151.62,0.0002,2]
[373242195,1752921058694,-151.62,0.0002,2]
[373242196,1752921058704,-151.62,0.0002,2]
[373242197,1752921058714,-151.62,0.0002,2]
[373242198,1752921058723,-151.62,0.0002,2]
[373242199,1752921058733,-151.62,0.0002,2]
[373242200,1752921058743,-151.62,0.0002,2]
[373242201,1752921058752,-151.62,0.0002,2]
[373242202,1752921058762,-151.62,0.0002,2]
[373242203,1752921058772,-151.62,0.0002,2]
[373242204,1752921058781,-151.62,0.0002,2]
[373242205,1752921058791,-151.62,0.0002,2]
[373242206,1752921058801,-151.62,0.0002,2]
[373242207,1752921058810,-151.62,0.0002,2]
[373242208,1752921058820,-151.62,0.0002,2]
[373242209,1752921058829,-151.62,0.0002,2]
[373242210,1752921058839,-151.62,0.0002,2]
[373242211,1752921058848,-151.62,0.0002,2]
[373242212,1752921058858,-151.62,0.0002,2]
[373242213,1752921058867,-151.62,0.0002,2]
[373242214,1752921058877,-151.62,0.0002,2]
[373242215,1752921058887,-151.62,0.0002,2]
[373242216,1752921058896,-151.62,0.0002,2]
[373242217,1752921058905,-151.62,0.0002,2]
[373242218,1752921058915,-151.62,0.0002,2]
[373242219,1752921058924,-151.62,0.0002,2]
[373242220,1752921058934,-151.62,0.0002,2]
[373242221,1752921058943,-151.62,0.0002,2]
[373242222,1752921058952,-151.62,0.0002,2]
[373242223,1752921058962,-151.62,0.0002,2]
[373242224,1752921058971,-151.62,0.0002,2]
[373242225,1752921058981,-151.62,0.0002,2]
[373242226,1752921058990,-151.62,0.0002,2]
[373242227,1752921059000,-151.62,0.0002,2]
[373242228,1752921059008,-151.62,0.0002,2]
[373242229,1752921059018,-151.62,0.0002,2]
[373242230,1752921059028,-151.62,0.0002,2]
[373242231,1752921059037,-151.62,0.0002,2]
[373242232,1752921059046,-151.62,0.0002,2]
[373242233,1752921059055,-151.62,0.0002,2]
[373242234,1752921059064,-151.62,0.0002,2]
[373242235,1752921059072,-151.62,0.0002,2]
[373242236,1752921059081,-151.62,0.0002,2]
[373242237,1752921059090,-151.62,0.0002,2]
[373242238,1752921059099,-151.62,0.0002,2]
[373242239,1752921059108,-151.62,0.0002,2]
[373242240,1752921059117,-500.0,0.0002001,2]
[373242241,1752921059126,-1000.0,0.00020052,2]
[373242242,1752921059135,-210.32,0.00020053,2]
[373242243,1752921059144,-480.0,0.00020053,2]
[373242244,1752921059154,-176.38,0.00020053,2]
[373242245,1752921059164,-480.0,0.00020053,2]
[373242246,1752921059174,-480.0,0.00020053,2]
[373242247,1752921059182,-1111.29,0.00020053,2]
[373242248,1752921059190,-480.0,0.00020053,2]
[373242249,1752921059197,-480.0,0.00020053,2]
[373242250,1752921059204,-527.21774152,0.00020053,2]
[373242251,1752921059211,-1310.82,0.00020053,2]
[373242252,1752921059220,-480.0,0.00020053,2]
[373242253,1752921059229,-173.63014084,0.00020053,2]
[373242254,1752921059239,-480.0,0.00020053,2]
[373242255,1752921059251,-480.0,0.00020053,2]
[373242256,1752921059261,-480.0,0.00020053,2]
[373242257,1752921059270,-1240.8,0.00020053,2]
[373242258,1752921059280,-480.0,0.00020053,2]
[373242259,1752921059290,-480.0,0.00020053,2]
[373242260,1752921059300,-480.0,0.00020053,2]
[373242261,1752921059309,-480.0,0.00020053,2]
[373242262,1752921059319,-480.0,0.00020053,2]
[373242263,1752921059330,-1606.01,0.00020053,2]
[373242264,1752921059340,-480.0,0.00020053,2]
[373242265,1752921059349,-485.43,0.00020053,2]
[373242266,1752921059359,-2440.33,0.00020053,2]
[373242267,1752921059368,-480.0,0.00020053,2]
[373242268,1752921059378,-1516.01,0.00020053,2]
[373242269,1752921059387,-700.94,0.00020053,2]
[373242270,1752921059397,-820.89,0.00020053,2]
[373242271,1752921059406,-195.67,0.00020053,2]
[373242272,1752921059416,-1156.47,0.00020053,2]
[373242273,1752921059425,-480.0,0.00020053,2]
[373242274,1752921059435,-521.71,0.00020053,2]
[373242275,1752921059444,-600.44,0.00020053,2]
[373242276,1752921059454,-2912.24,0.00020053,2]
[373242277,1752921059463,-480.0,0.00020053,2]
[373242278,1752921059472,-480.0,0.00020053,2]
[373242279,1752921059482,-480.0,0.00020053,2]
[373242280,1752921059491,-480.0,0.00020053,2]
[373242281,1752921059501,-277.05596642,0.00020053,2]
[373242282,1752921059512,-613.58,0.00020053,2]
[373242283,1752921059522,-480.0,0.00020053,2]
[373242284,1752921059532,-1529.27,0.00020053,2]
[373242285,1752921059542,-480.0,0.00020053,2]
[373242286,1752921059552,-480.0,0.00020053,2]
[373242287,1752921059561,-1247.57,0.00020053,2]
[373242288,1752921059570,-817.64,0.00020053,2]
[373242289,1752921059580,-1720.49,0.00020053,2]
[373242290,1752921059589,-526.61,0.00020053,2]
[373242291,1752921059599,-1590.09,0.00020053,2]
[373242292,1752921059608,-480.0,0.00020053,2]
[373242293,1752921059618,-480.0,0.00020053,2]
[373242294,1752921059627,-183.61759364,0.00020053,2]
[373242295,1752921059637,-480.0,0.00020053,2]
[373242296,1752921059647,-818.52,0.00020053,2]
[373242297,1752921059656,-1518.15,0.00020053,2]
[373242298,1752921059666,-480.0,0.00020053,2]
[373242299,1752921059675,-641.49,0.00020053,2]
[373242300,1752921059685,-580.76,0.00020053,2]
[373242301,1752921059694,-480.0,0.00020053,2]
[373242302,1752921059703,-1250.5,0.00020053,2]
[373242303,1752921059713,-480.0,0.00020053,2]
[373242304,1752921059723,-480.0,0.00020053,2]
[373242305,1752921059732,-1302.89,0.00020053,2]
[373242306,1752921059741,-484.97,0.00020053,2]
[373242307,1752921059751,-480.0,0.00020053,2]
[373242308,1752921059762,-480.0,0.00020053,2]
[373242309,1752921059771,-1578.8,0.00020053,2]
[373242310,1752921059781,-480.0,0.00020053,2]
[373242311,1752921059791,-3274.4,0.00020053,2]
[373242312,1752921059800,-480.0,0.00020053,2]
[373242313,1752921059810,-480.0,0.00020053,2]
[373242314,1752921059819,-1006.69,0.00020053,2]
[373242315,1752921059829,-480.0,0.00020053,2]
[373242316,1752921059838,-578.45,0.00020053,2]
[373242317,1752921059847,-852.18,0.00020053,2]
[373242318,1752921059857,-8787.28,0.00020053,2]
[373242319,1752921059866,-1814.63,0.00020053,2]
[373242320,1752921059876,-480.0,0.00020053,2]
[373242321,1752921059886,-480.0,0.00020053,2]
[373242322,1752921059896,-715.17,0.00020053,2]
[373242323,1752921059905,-3244.89,0.00020053,2]
[373242324,1752921059914,-1462.31,0.00020053,2]
[373242325,1752921059924,-954.46,0.00020053,2]
[373242326,1752921059934,-1688.44,0.00020053,2]
[373242327,1752921059943,-584.53,0.00020053,2]
[373242328,1752921059953,-1554.2,0.00020053,2]
[373242329,1752921059962,-508.45,0.00020053,2]
[373242330,1752921059971,-1158.1,0.00020053,2]
[373242331,1752921059981,-480.0,0.00020054,2]
[373242332,1752921059990,-480.0,0.00020054,2]
[373242333,1752921060000,-599.58,0.00020054,2]
[373242334,1752921060010,-1012.9,0.00020054,2]
[373242335,1752921060020,-480.0,0.00020054,2]
[373242336,1752921060030,-894.94,0.00020054,2]
[373242337,1752921060039,-480.0,0.00020054,2]
[373242338,1752921060049,-1744.64,0.00020054,2]
[373242339,1752921060059,-480.0,0.00020054,2]
[373242340,1752921060069,-480.0,0.00020054,2]
[373242341,1752921060078,-986.46,0.00020054,2]
[373242342,1752921060088,-668.47,0.00020054,2]
[373242343,1752921060098,-484.86,0.00020054,2]
[373242344,1752921060107,-502.38940049,0.00020054,2]
[373242345,1752921060116,-781.22,0.00020054,2]
[373242346,1752921060126,-480.0,0.00020054,2]
[373242347,1752921060136,-541.43,0.00020054,2]
[373242348,1752921060145,-2398.3,0.00020054,2]
[373242349,1752921060155,-590.52,0.00020054,2]
[373242350,1752921060165,-606.77,0.00020054,2]
[373242351,1752921060175,-480.0,0.00020054,2]
[373242352,1752921060184,-480.0,0.00020054,2]
[373242353,1752921060193,-628.36,0.00020054,2]
[373242354,1752921060203,-897.96,0.00020054,2]
[373242355,1752921060212,-489.7,0.00020054,2]
[373242356,1752921060221,-1147.13949272,0.00020097,2]
[373242357,1752921060230,-600.0,0.0002011,2]
[373242358,1752921060240,-373.9,0.00020163,2]
[373242359,1752921060255,-480.0,0.00020163,2]
[373242360,1752921060264,-257.06,0.00020163,2]
[373242361,1752921060273,-1111.29,0.00020163,2]
[373242362,1752921060282,-360.13,0.00020163,2]
[373242363,1752921060293,-353.47,0.00020163,2]
[373242364,1752921060302,-1310.82,0.00020163,2]
[373242365,1752921060311,-480.0,0.00020163,2]
[373242366,1752921060322,-513.18653652,0.00020163,2]
[373242367,1752921060333,-609.0277434,0.00020163,2]
[373242368,1752921060343,-480.0,0.00020163,2]
[373242369,1752921060352,-1240.8,0.00020163,2]
[373242370,1752921060361,-480.0,0.00020163,2]
[373242371,1752921060371,-480.0,0.00020163,2]
[373242372,1752921060381,-480.0,0.00020163,2]
[373242373,1752921060390,-480.0,0.00020163,2]
[373242374,1752921060399,-480.0,0.00020163,2]
[373242375,1752921060409,-1606.01,0.00020163,2]
[373242376,1752921060418,-480.0,0.00020163,2]
[373242377,1752921060428,-485.43,0.00020163,2]
[373242378,1752921060438,-2440.33,0.00020163,2]
[373242379,1752921060447,-480.0,0.00020163,2]
[373242380,1752921060456,-1516.01,0.00020163,2]
[373242381,1752921060466,-700.94,0.00020163,2]
[373242382,1752921060475,-820.89,0.00020163,2]
[373242383,1752921060484,-1156.47,0.00020163,2]
[373242384,1752921060755,-480.0,0.00020163,2]
[373242385,1752921060765,-521.71,0.00020163,2]
[373242386,1752921060774,-600.44,0.00020163,2]
[373242387,1752921060783,-2912.24,0.00020163,2]
[373242388,1752921060793,-480.0,0.00020163,2]
[373242389,1752921060803,-480.0,0.00020163,2]
[373242390,1752921060812,-480.0,0.00020163,2]
[373242391,1752921060821,-480.0,0.00020163,2]
[373242392,1752921060831,-208.38266279,0.00020163,2]
[373242393,1752921060841,-1529.27,0.00020163,2]
[373242394,1752921060851,-480.0,0.00020163,2]
[373242395,1752921060861,-288.27577048,0.00020163,2]
[373242396,1752921060870,-1247.57,0.00020163,2]
[373242397,1752921060879,-817.64,0.00020163,2]
[373242398,1752921060889,-1720.49,0.00020163,2]
[373242399,1752921060899,-1590.09,0.00020163,2]
[373242400,1752921060909,-480.0,0.00020163,2]
[373242401,1752921060918,-480.0,0.00020163,2]
[373242402,1752921060928,-480.0,0.00020163,2]
[373242403,1752921060938,-818.52,0.00020163,2]
[373242404,1752921060947,-1518.15,0.00020163,2]
[373242405,1752921060956,-480.0,0.00020163,2]
[373242406,1752921060965,-641.49,0.00020163,2]
[373242407,1752921060974,-580.76,0.00020163,2]
[373242408,1752921060983,-215.69,0.00020163,2]
[373242409,1752921060993,-480.0,0.00020163,2]
[373242410,1752921061002,-1250.5,0.00020163,2]
[373242411,1752921061012,-480.0,0.00020163,2]
[373242412,1752921061021,-480.0,0.00020163,2]
[373242413,1752921061031,-1302.89,0.00020163,2]
[373242414,1752921061041,-484.97,0.00020163,2]
[373242415,1752921061051,-556.61849089,0.00020163,2]
[373242416,1752921061060,-480.0,0.00020163,2]
[373242417,1752921061070,-1578.8,0.00020163,2]
[373242418,1752921061079,-480.0,0.00020163,2]
[373242419,1752921061089,-3274.4,0.00020163,2]
[373242420,1752921061098,-480.0,0.00020163,2]
[373242421,1752921061108,-203.66,0.00020163,2]
[373242422,1752921061117,-1006.69,0.00020163,2]
[373242423,1752921061126,-480.0,0.00020163,2]
[373242424,1752921061135,-578.45,0.00020163,2]
[373242425,1752921061144,-852.18,0.00020163,2]
[373242426,1752921061155,-8787.28,0.00020163,2]
[373242427,1752921061164,-1814.63,0.00020163,2]
[373242428,1752921061173,-480.0,0.00020163,2]
[373242429,1752921061183,-480.0,0.00020163,2]
[373242430,1752921061192,-715.17,0.00020163,2]
[373242431,1752921061202,-3244.89,0.00020163,2]
[373242432,1752921061212,-480.0,0.00020163,2]
[373242433,1752921061222,-1462.31,0.00020163,2]
[373242434,1752921061232,-954.46,0.00020163,2]
[373242435,1752921061242,-1688.44,0.00020163,2]
[373242436,1752921061257,-1554.2,0.00020163,2]
[373242437,1752921061267,-508.45,0.00020163,2]
[373242438,1752921061277,-480.0,0.00020164,2]
[373242439,1752921061287,-334.9,0.00020164,2]
[373242440,1752921061298,-599.58,0.00020164,2]
[373242441,1752921061308,-1012.9,0.00020164,2]
[373242442,1752921061317,-480.0,0.00020164,2]
[373242443,1752921061327,-894.94,0.00020164,2]
[373242444,1752921061337,-1744.64,0.00020164,2]
[373242445,1752921061346,-480.0,0.00020164,2]
[373242446,1752921061355,-480.0,0.00020164,2]
[373242447,1752921061364,-986.46,0.00020164,2]
[373242448,1752921061373,-668.47,0.00020164,2]
[373242449,1752921061382,-484.86,0.00020164,2]
[373242450,1752921061391,-781.22,0.00020164,2]
[373242451,1752921061401,-480.0,0.00020164,2]
[373242452,1752921061410,-541.43,0.00020164,2]
[373242453,1752921061421,-2398.3,0.00020164,2]
[373242454,1752921061431,-590.52,0.00020164,2]
[373242455,1752921061441,-606.77,0.00020164,2]
[373242456,1752921061451,-480.0,0.00020164,2]
[373242457,1752921061460,-628.36,0.00020164,2]
[373242458,1752921061470,-897.96,0.00020164,2]
[373242459,1752921061480,-489.7,0.00020164,2]